[Event "Titled Tuesday Blitz August 1 Late 2023"]
[White "Karamsetty, Jeevan"]
[Black "ExchangeAB"]
[WhiteFideId "2025337"]
[WhiteElo "2556"]
[BlackElo "2494"]
[Result "1-0"]
[Round "9"]
[TimeControl "180+1"]
[Date "2023.08.01"]
[WhiteClock "0:00:12"]
[BlackClock "0:00:04"]
[Board "48"]

1. e4 {[%clk 0:03:00]}  c6 {[%clk 0:02:59]} 2. d4 {[%clk 0:03:00]}  d5 {[%clk 0:03:00]} 3. exd5 {[%clk 0:03:00]}  cxd5 {[%clk 0:03:00]} 4. Bd3 {[%clk 0:02:59]}  Nf6 {[%clk 0:03:01]} 5. c3 {[%clk 0:02:57]}  Nc6 {[%clk 0:03:01]} 6. Bf4 {[%clk 0:02:55]}  Bg4 {[%clk 0:03:02]} 7. Qb3 {[%clk 0:02:55]}  Qd7 {[%clk 0:03:03]} 8. Nd2 {[%clk 0:02:55]}  e6 {[%clk 0:03:03]} 9. Ngf3 {[%clk 0:02:56]}  Bd6 {[%clk 0:03:04]} 10. Bxd6 {[%clk 0:02:55]}  Qxd6 {[%clk 0:03:05]} 11. O-O {[%clk 0:02:56]}  O-O {[%clk 0:03:04]} 12. Rfe1 {[%clk 0:02:51]}  Bxf3 {[%clk 0:03:04]} 13. Nxf3 {[%clk 0:02:51]}  Qc7 {[%clk 0:03:05]} 14. Qd1 {[%clk 0:02:49]}  a6 {[%clk 0:03:04]} 15. a4 {[%clk 0:02:49]}  Na5 {[%clk 0:02:45]} 16. Ne5 {[%clk 0:02:37]}  Nd7 {[%clk 0:02:44]} 17. Qh5 {[%clk 0:02:30]}  g6 {[%clk 0:02:40]} 18. Qh6 {[%clk 0:02:03]}  Nxe5 {[%clk 0:02:39]} 19. Rxe5 {[%clk 0:02:04]}  Nc4 {[%clk 0:02:22]} 20. Bxc4 {[%clk 0:01:32]}  Qxc4 {[%clk 0:02:16]} 21. Re3 {[%clk 0:01:24]}  Qc7 {[%clk 0:02:10]} 22. Rae1 {[%clk 0:01:23]}  Rae8 {[%clk 0:02:09]} 23. f4 {[%clk 0:01:17]}  Qd7 {[%clk 0:02:03]} 24. Rh3 {[%clk 0:00:55]}  f6 {[%clk 0:01:57]} 25. Ree3 {[%clk 0:00:52]}  Qg7 {[%clk 0:01:55]} 26. Qh4 {[%clk 0:00:52]}  Rf7 {[%clk 0:01:50]} 27. Qe1 {[%clk 0:00:51]}  Rfe7 {[%clk 0:01:49]} 28. Reg3 {[%clk 0:00:42]}  e5 {[%clk 0:01:45]} 29. dxe5 {[%clk 0:00:42]}  fxe5 {[%clk 0:01:46]} 30. f5 {[%clk 0:00:42]}  Rf8 {[%clk 0:01:24]} 31. Qd1 {[%clk 0:00:30]}  Rxf5 {[%clk 0:01:19]} 32. Qxd5+ {[%clk 0:00:29]}  Qf7 {[%clk 0:01:20]} 33. Qd8+ {[%clk 0:00:23]}  Re8 {[%clk 0:01:11]} 34. Qd1 {[%clk 0:00:23]}  e4 {[%clk 0:01:01]} 35. Re3 {[%clk 0:00:21]}  Rf8 {[%clk 0:01:00]} 36. Re1 {[%clk 0:00:19]}  Rd5 {[%clk 0:00:33]} 37. Qe2 {[%clk 0:00:14]}  Qf4 {[%clk 0:00:30]} 38. Re3 {[%clk 0:00:13]}  Re5 {[%clk 0:00:26]} 39. h3 {[%clk 0:00:13]}  Rfe8 {[%clk 0:00:25]} 40. Rf1 {[%clk 0:00:13]}  Qg5 {[%clk 0:00:25]} 41. Qc4+ {[%clk 0:00:13]}  Kg7 {[%clk 0:00:25]} 42. Rf7+ {[%clk 0:00:10]}  Kh6 {[%clk 0:00:24]} 43. Qe2 {[%clk 0:00:08]}  R8e7 {[%clk 0:00:22]} 44. Rf1 {[%clk 0:00:07]}  Rf5 {[%clk 0:00:19]} 45. Re1 {[%clk 0:00:06]}  Rfe5 {[%clk 0:00:16]} 46. Kh2 {[%clk 0:00:06]}  Qf4+ {[%clk 0:00:15]} 47. g3 {[%clk 0:00:06]}  Qf5 {[%clk 0:00:16]} 48. Rf1 {[%clk 0:00:05]}  Qe6 {[%clk 0:00:16]} 49. Rf4 {[%clk 0:00:06]}  Kg7 {[%clk 0:00:16]} 50. Qf2 {[%clk 0:00:06]}  Rf5 {[%clk 0:00:15]} 51. Qd2 {[%clk 0:00:05]}  Rxf4 {[%clk 0:00:15]} 52. gxf4 {[%clk 0:00:06]}  Qf5 {[%clk 0:00:16]} 53. Qd4+ {[%clk 0:00:05]}  Kh6 {[%clk 0:00:16]} 54. Kg3 {[%clk 0:00:06]}  Rf7 {[%clk 0:00:16]} 55. Qd6 {[%clk 0:00:06]}  Kh5 {[%clk 0:00:12]} 56. Qd1+ {[%clk 0:00:04]}  Kh6 {[%clk 0:00:12]} 57. Qg4 {[%clk 0:00:04]}  Kg7 {[%clk 0:00:11]} 58. h4 {[%clk 0:00:04]}  h5 {[%clk 0:00:11]} 59. Qe2 {[%clk 0:00:03]}  Qxf4+ {[%clk 0:00:11]} 60. Kh3 {[%clk 0:00:04]}  Qf5+ {[%clk 0:00:08]} 61. Kh2 {[%clk 0:00:04]}  Re7 {[%clk 0:00:08]} 62. Rg3 {[%clk 0:00:04]}  Qf4 {[%clk 0:00:08]} 63. Kh3 {[%clk 0:00:03]}  e3 {[%clk 0:00:07]} 64. Qd3 {[%clk 0:00:03]}  Re6 {[%clk 0:00:04]} 65. Qd7+ {[%clk 0:00:03]}  Kf6 {[%clk 0:00:04]} 66. Qd8+ {[%clk 0:00:03]}  Ke5 {[%clk 0:00:05]} 67. Qb8+ {[%clk 0:00:03]}  Ke4 {[%clk 0:00:05]} 68. Qxb7+ {[%clk 0:00:03]}  Kf5 {[%clk 0:00:05]} 69. Qg2 {[%clk 0:00:03]}  Re4 {[%clk 0:00:04]} 70. Rg5+ {[%clk 0:00:03]}  Ke6 {[%clk 0:00:04]} 71. Rxg6+ {[%clk 0:00:04]}  Kd5 {[%clk 0:00:05]} 72. Rg5+ {[%clk 0:00:04]}  Kc4 {[%clk 0:00:05]} 73. Qe2+ {[%clk 0:00:04]}  Kb3 {[%clk 0:00:06]} 74. Qd1+ {[%clk 0:00:05]}  Ka2 {[%clk 0:00:06]} 75. Qe1 {[%clk 0:00:03]}  Qf3+ {[%clk 0:00:05]} 76. Rg3 {[%clk 0:00:03]}  Qf5+ {[%clk 0:00:06]} 77. Kg2 {[%clk 0:00:03]}  Qf2+ {[%clk 0:00:05]} 78. Qxf2 {[%clk 0:00:04]}  exf2 {[%clk 0:00:06]} 79. Kxf2 {[%clk 0:00:05]}  Rxh4 {[%clk 0:00:07]} 80. b4 {[%clk 0:00:03]}  Kb3 {[%clk 0:00:07]} 81. a5 {[%clk 0:00:04]}  Rc4 {[%clk 0:00:06]} 82. Kg2 {[%clk 0:00:04]}  h4 {[%clk 0:00:06]} 83. Rh3 {[%clk 0:00:05]}  Ka4 {[%clk 0:00:06]} 84. Kf2 {[%clk 0:00:05]}  Kb5 {[%clk 0:00:07]} 85. Ke2 {[%clk 0:00:06]}  Ka4 {[%clk 0:00:07]} 86. Kd2 {[%clk 0:00:06]}  Rg4 {[%clk 0:00:08]} 87. Kc2 {[%clk 0:00:06]}  Kb5 {[%clk 0:00:08]} 88. Kb3 {[%clk 0:00:06]}  Rf4 {[%clk 0:00:09]} 89. Rd3 {[%clk 0:00:06]}  Rg4 {[%clk 0:00:09]} 90. c4+ {[%clk 0:00:06]}  Kc6 {[%clk 0:00:09]} 91. Ka4 {[%clk 0:00:05]}  Rg3 {[%clk 0:00:09]} 92. Rd4 {[%clk 0:00:05]}  h3 {[%clk 0:00:09]} 93. Rh4 {[%clk 0:00:05]}  Kb7 {[%clk 0:00:07]} 94. b5 {[%clk 0:00:05]}  axb5+ {[%clk 0:00:08]} 95. cxb5 {[%clk 0:00:06]}  Ka7 {[%clk 0:00:07]} 96. Rh7+ {[%clk 0:00:06]}  Kb8 {[%clk 0:00:08]} 97. a6 {[%clk 0:00:07]}  Ka8 {[%clk 0:00:06]} 98. Ka5 {[%clk 0:00:07]}  Kb8 {[%clk 0:00:05]} 99. Kb6 {[%clk 0:00:07]}  Rg6+ {[%clk 0:00:05]} 100. Ka5 {[%clk 0:00:08]}  Rg3 {[%clk 0:00:05]} 101. Kb4 {[%clk 0:00:08]}  Rf3 {[%clk 0:00:05]} 102. b6 {[%clk 0:00:08]}  Rf4+ {[%clk 0:00:02]} 103. Kb5 {[%clk 0:00:08]}  Rf5+ {[%clk 0:00:03]} 104. Kc4 {[%clk 0:00:09]}  Rf4+ {[%clk 0:00:03]} 105. Kd5 {[%clk 0:00:09]}  Rf5+ {[%clk 0:00:04]} 106. Ke6 {[%clk 0:00:10]}  Rf8 {[%clk 0:00:04]} 107. Rxh3 {[%clk 0:00:10]}  Rg8 {[%clk 0:00:04]} 108. Rb3 {[%clk 0:00:10]}  Rg6+ {[%clk 0:00:05]} 109. Kd5 {[%clk 0:00:10]}  Rh6 {[%clk 0:00:05]} 110. Kc5 {[%clk 0:00:10]}  Rh5+ {[%clk 0:00:06]} 111. Kc6 {[%clk 0:00:11]}  Rh6+ {[%clk 0:00:06]} 112. Kb5 {[%clk 0:00:11]}  Rh5+ {[%clk 0:00:07]} 113. Ka4 {[%clk 0:00:11]}  Rh4+ {[%clk 0:00:07]} 114. Rb4 {[%clk 0:00:12]}  Rh6 {[%clk 0:00:08]} 115. Ka5 {[%clk 0:00:12]}  Rh5+ {[%clk 0:00:08]} 116. Rb5 {[%clk 0:00:12]}  Rh6 {[%clk 0:00:08]} 117. Re5 {[%clk 0:00:11]}  Rh8 {[%clk 0:00:08]} 118. a7+ {[%clk 0:00:11]}  Kb7 {[%clk 0:00:07]} 119. Re7+ {[%clk 0:00:11]}  Ka8 {[%clk 0:00:07]} 120. Ka6 {[%clk 0:00:12]}  Rh6 {[%clk 0:00:04]} 121. Re8# {[%clk 0:00:12]} 1-0


[Site "https://www.chess.com"]

[Event "Titled Tuesday Blitz August 1 Late 2023"]
[White "D`Arruda, Ricardo D."]
[Black "Golubev, Mikhail"]
[WhiteFideId "100692"]
[BlackFideId "14100983"]
[WhiteElo "2473"]
[BlackElo "2545"]
[Result "0-1"]
[Round "9"]
[TimeControl "180+1"]
[Date "2023.08.01"]
[WhiteClock "0:00:13"]
[BlackClock "0:00:05"]
[Board "50"]

1. Nf3 {[%clk 0:02:55]}  d6 {[%clk 0:02:58]} 2. d4 {[%clk 0:02:55]}  Nf6 {[%clk 0:02:58]} 3. Nc3 {[%clk 0:02:55]}  Nbd7 {[%clk 0:02:57]} 4. e4 {[%clk 0:02:55]}  e5 {[%clk 0:02:57]} 5. Be2 {[%clk 0:02:53]}  g6 {[%clk 0:02:53]} 6. b3 {[%clk 0:02:53]}  Bg7 {[%clk 0:02:52]} 7. Bb2 {[%clk 0:02:54]}  O-O {[%clk 0:02:51]} 8. O-O {[%clk 0:02:54]}  exd4 {[%clk 0:02:43]} 9. Nxd4 {[%clk 0:02:53]}  Re8 {[%clk 0:02:43]} 10. f3 {[%clk 0:02:52]}  Nh5 {[%clk 0:02:36]} 11. g3 {[%clk 0:02:39]}  Nb6 {[%clk 0:02:28]} 12. Qd2 {[%clk 0:02:33]}  a6 {[%clk 0:02:22]} 13. f4 {[%clk 0:02:24]}  c5 {[%clk 0:02:20]} 14. Nf3 {[%clk 0:02:23]}  d5 {[%clk 0:02:07]} 15. e5 {[%clk 0:02:07]}  d4 {[%clk 0:02:07]} 16. Ne4 {[%clk 0:02:04]}  Bf8 {[%clk 0:01:26]} 17. c3 {[%clk 0:01:36]}  f5 {[%clk 0:01:18]} 18. Nf2 {[%clk 0:01:28]}  dxc3 {[%clk 0:01:15]} 19. Qxc3 {[%clk 0:01:28]}  Ng7 {[%clk 0:01:14]} 20. Ng5 {[%clk 0:01:24]}  h6 {[%clk 0:01:11]} 21. Nf3 {[%clk 0:01:21]}  Be6 {[%clk 0:01:10]} 22. Rad1 {[%clk 0:01:14]}  Qc7 {[%clk 0:01:07]} 23. Nh4 {[%clk 0:01:12]}  Kh7 {[%clk 0:01:03]} 24. Rd2 {[%clk 0:01:04]}  Nd5 {[%clk 0:01:02]} 25. Qf3 {[%clk 0:01:00]}  Rad8 {[%clk 0:00:59]} 26. Rfd1 {[%clk 0:01:00]}  Nb4 {[%clk 0:00:54]} 27. Rxd8 {[%clk 0:00:59]}  Rxd8 {[%clk 0:00:54]} 28. Rxd8 {[%clk 0:00:59]}  Qxd8 {[%clk 0:00:54]} 29. a3 {[%clk 0:00:59]}  Nc6 {[%clk 0:00:51]} 30. Bc4 {[%clk 0:00:48]}  Qd7 {[%clk 0:00:40]} 31. Qd3 {[%clk 0:00:43]}  Qxd3 {[%clk 0:00:37]} 32. Nxd3 {[%clk 0:00:44]}  b5 {[%clk 0:00:36]} 33. Bxe6 {[%clk 0:00:43]}  Nxe6 {[%clk 0:00:37]} 34. Nf3 {[%clk 0:00:43]}  c4 {[%clk 0:00:37]} 35. bxc4 {[%clk 0:00:43]}  bxc4 {[%clk 0:00:37]} 36. Nde1 {[%clk 0:00:42]}  Bc5+ {[%clk 0:00:27]} 37. Kf1 {[%clk 0:00:43]}  Kg7 {[%clk 0:00:27]} 38. Nc2 {[%clk 0:00:40]}  Kf7 {[%clk 0:00:26]} 39. Ke2 {[%clk 0:00:41]}  Ke7 {[%clk 0:00:26]} 40. Kd2 {[%clk 0:00:40]}  g5 {[%clk 0:00:21]} 41. fxg5 {[%clk 0:00:37]}  hxg5 {[%clk 0:00:21]} 42. Kc3 {[%clk 0:00:35]}  g4 {[%clk 0:00:19]} 43. Nh4 {[%clk 0:00:34]}  Nxe5 {[%clk 0:00:19]} 44. Nxf5+ {[%clk 0:00:33]}  Kf6 {[%clk 0:00:19]} 45. Nfd4 {[%clk 0:00:31]}  Nf3 {[%clk 0:00:13]} 46. Nxe6 {[%clk 0:00:28]}  Kxe6 {[%clk 0:00:13]} 47. Kxc4 {[%clk 0:00:28]}  Bg1 {[%clk 0:00:13]} 48. Nd4+ {[%clk 0:00:26]}  Bxd4 {[%clk 0:00:12]} 49. Bxd4 {[%clk 0:00:26]}  Nxh2 {[%clk 0:00:12]} 50. Kc5 {[%clk 0:00:25]}  Nf1 {[%clk 0:00:11]} 51. Bf2 {[%clk 0:00:25]}  Nd2 {[%clk 0:00:11]} 52. Kb4 {[%clk 0:00:22]}  Kd5 {[%clk 0:00:10]} 53. Be1 {[%clk 0:00:21]}  Nc4 {[%clk 0:00:10]} 54. Bc3 {[%clk 0:00:19]}  Nd6 {[%clk 0:00:06]} 55. Ka5 {[%clk 0:00:18]}  Nc4+ {[%clk 0:00:05]} 56. Kb4 {[%clk 0:00:17]}  Nd6 {[%clk 0:00:05]} 57. Bd2 {[%clk 0:00:16]}  Kc6 {[%clk 0:00:04]} 58. Kc3 {[%clk 0:00:14]}  Nb5+ {[%clk 0:00:04]} 59. Kb4 {[%clk 0:00:14]}  Nc7 {[%clk 0:00:04]} 60. Bf4 {[%clk 0:00:14]}  Nd5+ {[%clk 0:00:04]} 61. Kc4 {[%clk 0:00:15]}  Nxf4 {[%clk 0:00:04]} 62. gxf4 {[%clk 0:00:16]}  g3 {[%clk 0:00:04]} 63. f5 {[%clk 0:00:16]}  g2 {[%clk 0:00:04]} 64. f6 {[%clk 0:00:13]}  g1=Q {[%clk 0:00:05]} 0-1


[Site "https://www.chess.com"]

[Event "Titled Tuesday Blitz August 1 Late 2023"]
[White "Kazakov, Mikhail"]
[Black "Womacka, Mathias"]
[WhiteFideId "14102749"]
[BlackFideId "4611390"]
[WhiteElo "2446"]
[BlackElo "2540"]
[Result "1-0"]
[Round "9"]
[TimeControl "180+1"]
[Date "2023.08.01"]
[WhiteClock "0:00:04"]
[BlackClock "0:00:00"]
[Board "51"]

1. e4 {[%clk 0:02:49]}  c5 {[%clk 0:02:59]} 2. Nf3 {[%clk 0:02:48]}  d6 {[%clk 0:02:59]} 3. d4 {[%clk 0:02:48]}  cxd4 {[%clk 0:03:00]} 4. Nxd4 {[%clk 0:02:48]}  Nf6 {[%clk 0:03:00]} 5. Nc3 {[%clk 0:02:43]}  a6 {[%clk 0:03:00]} 6. Be2 {[%clk 0:02:42]}  e5 {[%clk 0:03:00]} 7. Nf3 {[%clk 0:02:41]}  Be7 {[%clk 0:03:01]} 8. O-O {[%clk 0:02:40]}  Be6 {[%clk 0:02:57]} 9. Bg5 {[%clk 0:02:35]}  Nbd7 {[%clk 0:02:54]} 10. a4 {[%clk 0:02:34]}  O-O {[%clk 0:02:49]} 11. Re1 {[%clk 0:02:33]}  Rc8 {[%clk 0:02:43]} 12. Nd2 {[%clk 0:02:31]}  d5 {[%clk 0:02:21]} 13. exd5 {[%clk 0:02:25]}  Nxd5 {[%clk 0:02:22]} 14. Nxd5 {[%clk 0:02:12]}  Bxg5 {[%clk 0:02:10]} 15. Ne4 {[%clk 0:02:09]}  Bh6 {[%clk 0:01:51]} 16. Nd6 {[%clk 0:01:45]}  Rb8 {[%clk 0:01:17]} 17. a5 {[%clk 0:01:13]}  Nf6 {[%clk 0:01:06]} 18. Nb6 {[%clk 0:01:08]}  Qc7 {[%clk 0:00:58]} 19. Ndc4 {[%clk 0:00:48]}  Rbd8 {[%clk 0:00:49]} 20. Qb1 {[%clk 0:00:46]}  Nd5 {[%clk 0:00:39]} 21. Bf1 {[%clk 0:00:41]}  Nxb6 {[%clk 0:00:35]} 22. axb6 {[%clk 0:00:39]}  Qc8 {[%clk 0:00:29]} 23. Nxe5 {[%clk 0:00:34]}  Rd2 {[%clk 0:00:29]} 24. c3 {[%clk 0:00:23]}  Qc5 {[%clk 0:00:27]} 25. Nd3 {[%clk 0:00:20]}  Qxb6 {[%clk 0:00:27]} 26. Rd1 {[%clk 0:00:19]}  Rxd1 {[%clk 0:00:23]} 27. Qxd1 {[%clk 0:00:20]}  Rd8 {[%clk 0:00:23]} 28. Qe2 {[%clk 0:00:19]}  Bc4 {[%clk 0:00:22]} 29. Qc2 {[%clk 0:00:19]}  g6 {[%clk 0:00:20]} 30. g3 {[%clk 0:00:17]}  Bg7 {[%clk 0:00:20]} 31. Nf4 {[%clk 0:00:16]}  Bb3 {[%clk 0:00:18]} 32. Qe2 {[%clk 0:00:16]}  h5 {[%clk 0:00:17]} 33. h4 {[%clk 0:00:15]}  Bh6 {[%clk 0:00:16]} 34. Nd3 {[%clk 0:00:13]}  Bc4 {[%clk 0:00:15]} 35. Qc2 {[%clk 0:00:13]}  Qd6 {[%clk 0:00:14]} 36. Rd1 {[%clk 0:00:12]}  b5 {[%clk 0:00:12]} 37. b3 {[%clk 0:00:11]}  Be6 {[%clk 0:00:11]} 38. Nb2 {[%clk 0:00:09]}  Qc7 {[%clk 0:00:11]} 39. Rxd8+ {[%clk 0:00:09]}  Qxd8 {[%clk 0:00:12]} 40. c4 {[%clk 0:00:09]}  bxc4 {[%clk 0:00:10]} 41. Bxc4 {[%clk 0:00:10]}  Qd7 {[%clk 0:00:10]} 42. Bxe6 {[%clk 0:00:10]}  Qxe6 {[%clk 0:00:11]} 43. Nc4 {[%clk 0:00:10]}  Bg7 {[%clk 0:00:11]} 44. Kg2 {[%clk 0:00:10]}  Bd4 {[%clk 0:00:10]} 45. Qd3 {[%clk 0:00:10]}  Qd5+ {[%clk 0:00:10]} 46. Qf3 {[%clk 0:00:10]}  Qxf3+ {[%clk 0:00:09]} 47. Kxf3 {[%clk 0:00:11]}  Kf8 {[%clk 0:00:10]} 48. Ke2 {[%clk 0:00:10]}  Ke7 {[%clk 0:00:10]} 49. Nd2 {[%clk 0:00:09]}  Kd6 {[%clk 0:00:09]} 50. f3 {[%clk 0:00:10]}  Kc5 {[%clk 0:00:09]} 51. Kd3 {[%clk 0:00:09]}  Be5 {[%clk 0:00:08]} 52. f4 {[%clk 0:00:08]}  Bc7 {[%clk 0:00:07]} 53. Ne4+ {[%clk 0:00:07]}  Kb4 {[%clk 0:00:07]} 54. Kc2 {[%clk 0:00:07]}  Bd8 {[%clk 0:00:04]} 55. Nd6 {[%clk 0:00:06]}  f5 {[%clk 0:00:03]} 56. Nf7 {[%clk 0:00:06]}  Bb6 {[%clk 0:00:00]} 57. Ne5 {[%clk 0:00:04]} 1-0


[Site "https://www.chess.com"]

[Event "Titled Tuesday Blitz August 1 Late 2023"]
[White "i_like_explosions"]
[Black "Moral Garcia, Serafin"]
[BlackFideId "2201925"]
[WhiteElo "2425"]
[BlackElo "2535"]
[Result "1-0"]
[Round "9"]
[TimeControl "180+1"]
[Date "2023.08.01"]
[WhiteClock "0:00:32"]
[BlackClock "0:00:21"]
[Board "53"]

1. d4 {[%clk 0:03:00]}  Nf6 {[%clk 0:02:59]} 2. Bg5 {[%clk 0:03:00]}  d5 {[%clk 0:02:59]} 3. Bxf6 {[%clk 0:03:00]}  exf6 {[%clk 0:02:59]} 4. e3 {[%clk 0:03:00]}  Bd6 {[%clk 0:02:59]} 5. c4 {[%clk 0:03:00]}  dxc4 {[%clk 0:03:00]} 6. Bxc4 {[%clk 0:03:01]}  O-O {[%clk 0:03:00]} 7. Nf3 {[%clk 0:03:01]}  c6 {[%clk 0:03:00]} 8. O-O {[%clk 0:03:02]}  Nd7 {[%clk 0:03:00]} 9. Nc3 {[%clk 0:03:03]}  f5 {[%clk 0:03:00]} 10. Qc2 {[%clk 0:03:03]}  Nf6 {[%clk 0:03:00]} 11. Rad1 {[%clk 0:03:03]}  Qe7 {[%clk 0:02:57]} 12. a3 {[%clk 0:03:03]}  Ne4 {[%clk 0:02:56]} 13. Nd2 {[%clk 0:03:01]}  Nxd2 {[%clk 0:02:45]} 14. Rxd2 {[%clk 0:02:59]}  Be6 {[%clk 0:02:45]} 15. Bxe6 {[%clk 0:02:56]}  Qxe6 {[%clk 0:02:45]} 16. Rfd1 {[%clk 0:02:55]}  Rad8 {[%clk 0:02:34]} 17. g3 {[%clk 0:02:54]}  g6 {[%clk 0:02:21]} 18. b4 {[%clk 0:02:44]}  Be7 {[%clk 0:02:15]} 19. Na4 {[%clk 0:02:43]}  Rd5 {[%clk 0:02:12]} 20. Nc5 {[%clk 0:02:43]}  Qc8 {[%clk 0:02:06]} 21. Qc4 {[%clk 0:02:40]}  Rfd8 {[%clk 0:02:05]} 22. a4 {[%clk 0:02:33]}  b6 {[%clk 0:01:57]} 23. Nd3 {[%clk 0:02:30]}  a5 {[%clk 0:01:51]} 24. Rb1 {[%clk 0:01:54]}  b5 {[%clk 0:01:22]} 25. axb5 {[%clk 0:01:42]}  Rxb5 {[%clk 0:01:22]} 26. Rdb2 {[%clk 0:01:03]}  axb4 {[%clk 0:01:10]} 27. Nxb4 {[%clk 0:01:03]}  Bxb4 {[%clk 0:00:53]} 28. Rxb4 {[%clk 0:01:02]}  Rxb4 {[%clk 0:00:48]} 29. Rxb4 {[%clk 0:01:01]}  Qc7 {[%clk 0:00:35]} 30. Ra4 {[%clk 0:00:50]}  Qb7 {[%clk 0:00:29]} 31. Rb4 {[%clk 0:00:45]}  Qd7 {[%clk 0:00:26]} 32. Rb6 {[%clk 0:00:43]}  Rc8 {[%clk 0:00:27]} 33. Qc5 {[%clk 0:00:42]}  Qc7 {[%clk 0:00:25]} 34. Kg2 {[%clk 0:00:41]}  Kg7 {[%clk 0:00:24]} 35. Ra6 {[%clk 0:00:37]}  Qd7 {[%clk 0:00:23]} 36. Ra7 {[%clk 0:00:36]}  Rc7 {[%clk 0:00:21]} 37. Qe5+ {[%clk 0:00:32]} 1-0


[Site "https://www.chess.com"]

[Event "Titled Tuesday Blitz August 1 Late 2023"]
[White "Bueno, Alfeu Junior Varela"]
[Black "Janaszak, Dawid"]
[WhiteFideId "2108879"]
[BlackFideId "1119206"]
[WhiteElo "2401"]
[BlackElo "2530"]
[Result "0-1"]
[Round "9"]
[TimeControl "180+1"]
[Date "2023.08.01"]
[WhiteClock "0:01:19"]
[BlackClock "0:02:02"]
[Board "54"]

1. e4 {[%clk 0:02:57]}  c5 {[%clk 0:02:58]} 2. Nc3 {[%clk 0:02:53]}  e6 {[%clk 0:02:58]} 3. f4 {[%clk 0:02:53]}  d5 {[%clk 0:02:56]} 4. Nf3 {[%clk 0:02:52]}  d4 {[%clk 0:02:51]} 5. Nb1 {[%clk 0:02:51]}  Nf6 {[%clk 0:02:47]} 6. Bb5+ {[%clk 0:02:49]}  Bd7 {[%clk 0:02:44]} 7. Bxd7+ {[%clk 0:02:50]}  Nbxd7 {[%clk 0:02:44]} 8. d3 {[%clk 0:02:51]}  c4 {[%clk 0:02:41]} 9. e5 {[%clk 0:02:46]}  Nd5 {[%clk 0:02:37]} 10. dxc4 {[%clk 0:02:41]}  Ne3 {[%clk 0:02:37]} 11. Qe2 {[%clk 0:01:59]}  Bc5 {[%clk 0:02:34]} 12. c3 {[%clk 0:01:42]}  d3 {[%clk 0:02:22]} 13. Qxd3 {[%clk 0:01:30]}  Nxg2+ {[%clk 0:02:19]} 14. Ke2 {[%clk 0:01:30]}  a5 {[%clk 0:02:03]} 15. Nbd2 {[%clk 0:01:19]}  Nxf4+ {[%clk 0:02:02]} 0-1


[Site "https://www.chess.com"]

[Event "Titled Tuesday Blitz August 1 Late 2023"]
[White "Estrada Nieto, Julian"]
[Black "Hacker, Jonas"]
[WhiteFideId "5101018"]
[BlackFideId "1270968"]
[WhiteElo "2524"]
[BlackElo "2375"]
[Result "1-0"]
[Round "9"]
[TimeControl "180+1"]
[Date "2023.08.01"]
[WhiteClock "0:00:06"]
[BlackClock "0:00:00"]
[Board "55"]

1. e4 {[%clk 0:03:00]}  c5 {[%clk 0:02:57]} 2. Nf3 {[%clk 0:03:00]}  e6 {[%clk 0:02:56]} 3. c3 {[%clk 0:03:00]}  Nf6 {[%clk 0:02:56]} 4. e5 {[%clk 0:03:00]}  Nd5 {[%clk 0:02:56]} 5. Bc4 {[%clk 0:03:01]}  d6 {[%clk 0:02:55]} 6. d4 {[%clk 0:02:59]}  cxd4 {[%clk 0:02:55]} 7. cxd4 {[%clk 0:03:00]}  Be7 {[%clk 0:02:54]} 8. O-O {[%clk 0:02:59]}  O-O {[%clk 0:02:53]} 9. Qe2 {[%clk 0:02:59]}  b6 {[%clk 0:02:53]} 10. Bd2 {[%clk 0:02:55]}  Bb7 {[%clk 0:02:38]} 11. Nc3 {[%clk 0:02:55]}  Nxc3 {[%clk 0:02:34]} 12. Bxc3 {[%clk 0:02:54]}  d5 {[%clk 0:01:42]} 13. Bd3 {[%clk 0:02:54]}  Nc6 {[%clk 0:01:43]} 14. a3 {[%clk 0:02:38]}  Na5 {[%clk 0:01:40]} 15. Bxa5 {[%clk 0:02:30]}  bxa5 {[%clk 0:01:41]} 16. Rac1 {[%clk 0:02:22]}  Qb6 {[%clk 0:01:39]} 17. Rc3 {[%clk 0:02:09]}  Rac8 {[%clk 0:01:35]} 18. Rfc1 {[%clk 0:02:08]}  Rxc3 {[%clk 0:01:34]} 19. Rxc3 {[%clk 0:02:08]}  h6 {[%clk 0:01:14]} 20. Qc2 {[%clk 0:02:07]}  Rb8 {[%clk 0:01:07]} 21. Rb3 {[%clk 0:01:34]}  Qd8 {[%clk 0:01:06]} 22. g3 {[%clk 0:01:29]}  Ba8 {[%clk 0:00:57]} 23. Nd2 {[%clk 0:01:14]}  Rxb3 {[%clk 0:00:53]} 24. Qxb3 {[%clk 0:01:13]}  Qb6 {[%clk 0:00:52]} 25. Qxb6 {[%clk 0:01:07]}  axb6 {[%clk 0:00:53]} 26. Bb5 {[%clk 0:01:05]}  f6 {[%clk 0:00:50]} 27. Nf3 {[%clk 0:00:58]}  Kf7 {[%clk 0:00:48]} 28. Kf1 {[%clk 0:00:59]}  Bb7 {[%clk 0:00:48]} 29. Ke2 {[%clk 0:00:58]}  Bd8 {[%clk 0:00:46]} 30. Ke3 {[%clk 0:00:58]}  Bc7 {[%clk 0:00:46]} 31. h4 {[%clk 0:00:54]}  Bc8 {[%clk 0:00:42]} 32. h5 {[%clk 0:00:50]}  Ke7 {[%clk 0:00:41]} 33. g4 {[%clk 0:00:42]}  Kf7 {[%clk 0:00:40]} 34. Kf4 {[%clk 0:00:39]}  Ke7 {[%clk 0:00:36]} 35. Ke3 {[%clk 0:00:38]}  Kf7 {[%clk 0:00:36]} 36. exf6 {[%clk 0:00:34]}  gxf6 {[%clk 0:00:36]} 37. Bc6 {[%clk 0:00:30]}  Ba6 {[%clk 0:00:32]} 38. Nd2 {[%clk 0:00:29]}  Bh2 {[%clk 0:00:23]} 39. b4 {[%clk 0:00:24]}  axb4 {[%clk 0:00:15]} 40. axb4 {[%clk 0:00:24]}  Bc4 {[%clk 0:00:15]} 41. b5 {[%clk 0:00:16]}  Ba2 {[%clk 0:00:14]} 42. Nf3 {[%clk 0:00:13]}  Bd6 {[%clk 0:00:13]} 43. Nh4 {[%clk 0:00:13]}  Bc7 {[%clk 0:00:12]} 44. Ng6 {[%clk 0:00:12]}  Bd6 {[%clk 0:00:12]} 45. f4 {[%clk 0:00:13]}  Ba3 {[%clk 0:00:11]} 46. Bd7 {[%clk 0:00:10]}  Bb1 {[%clk 0:00:11]} 47. Nh4 {[%clk 0:00:08]}  Bc1+ {[%clk 0:00:11]} 48. Kf3 {[%clk 0:00:08]}  Ke7 {[%clk 0:00:11]} 49. Bc6 {[%clk 0:00:07]}  Be4+ {[%clk 0:00:11]} 50. Kg3 {[%clk 0:00:06]}  Be3 {[%clk 0:00:11]} 51. Ng6+ {[%clk 0:00:05]}  Kf7 {[%clk 0:00:10]} 52. Nh8+ {[%clk 0:00:03]}  Kg7 {[%clk 0:00:10]} 53. Ng6 {[%clk 0:00:03]}  Bxg6 {[%clk 0:00:06]} 54. hxg6 {[%clk 0:00:03]}  Kxg6 {[%clk 0:00:06]} 55. f5+ {[%clk 0:00:04]}  exf5 {[%clk 0:00:06]} 56. gxf5+ {[%clk 0:00:04]}  Kxf5 {[%clk 0:00:06]} 57. Bxd5 {[%clk 0:00:05]}  Bxd4 {[%clk 0:00:06]} 58. Bc6 {[%clk 0:00:05]}  Kg5 {[%clk 0:00:07]} 59. Bd7 {[%clk 0:00:05]}  f5 {[%clk 0:00:07]} 60. Kf3 {[%clk 0:00:05]}  h5 {[%clk 0:00:07]} 61. Bc8 {[%clk 0:00:05]}  h4 {[%clk 0:00:07]} 62. Kg2 {[%clk 0:00:04]}  Kg4 {[%clk 0:00:07]} 63. Bd7 {[%clk 0:00:04]}  h3+ {[%clk 0:00:07]} 64. Kh2 {[%clk 0:00:03]}  Be5+ {[%clk 0:00:08]} 65. Kh1 {[%clk 0:00:03]}  Kf4 {[%clk 0:00:07]} 66. Kh2 {[%clk 0:00:02]}  Kg4+ {[%clk 0:00:07]} 67. Kh1 {[%clk 0:00:02]}  h2 {[%clk 0:00:07]} 68. Bc6 {[%clk 0:00:03]}  Kf4 {[%clk 0:00:07]} 69. Bd5 {[%clk 0:00:04]}  Ke3 {[%clk 0:00:08]} 70. Bc6 {[%clk 0:00:04]}  Bg3 {[%clk 0:00:07]} 71. Kg2 {[%clk 0:00:05]}  f4 {[%clk 0:00:07]} 72. Bb7 {[%clk 0:00:05]}  Kd4 {[%clk 0:00:06]} 73. Kh1 {[%clk 0:00:05]}  Kc5 {[%clk 0:00:00]} 74. Bc6 {[%clk 0:00:06]} 1-0


[Site "https://www.chess.com"]